[Event "Late-Titled-Tuesday-Blitz-October-03-2023"]
[Site "Chess.com"]
[Date "2023.10.03"]
[Round "6"]
[White "PapaieDudu"]
[Black "WPWPWP-2015"]
[Result "0-1"]
[WhiteElo "2381"]
[BlackElo "2507"]
[TimeControl "180+1"]
[EndTime "15:03:22 PDT"]
[Termination "WPWPWP-2015 won on time"]

1. e4 {[%clk 0:03:00.6]} 1... c5 {[%clk 0:02:59.3]} 2. Nf3 {[%clk 0:03:00.4]}
2... d6 {[%clk 0:02:59]} 3. d4 {[%clk 0:03:01.1]} 3... cxd4 {[%clk 0:02:58.7]}
4. Nxd4 {[%clk 0:03:02]} 4... Nf6 {[%clk 0:02:58.8]} 5. Nc3 {[%clk 0:03:02.9]}
5... a6 {[%clk 0:02:59.2]} 6. f3 {[%clk 0:03:03.4]} 6... e5 {[%clk 0:02:58.4]}
7. Nb3 {[%clk 0:03:03.3]} 7... h5 {[%clk 0:02:58]} 8. Be3 {[%clk 0:03:02.7]}
8... Be6 {[%clk 0:02:57.5]} 9. Qd2 {[%clk 0:03:03]} 9... Nbd7 {[%clk 0:02:57.2]}
10. O-O-O {[%clk 0:03:03.5]} 10... Be7 {[%clk 0:02:56.7]} 11. Kb1 {[%clk
0:03:02.6]} 11... Qc7 {[%clk 0:02:55.4]} 12. Nd5 {[%clk 0:02:56.7]} 12... Nxd5
{[%clk 0:02:52.5]} 13. exd5 {[%clk 0:02:56.9]} 13... Bf5 {[%clk 0:02:52.7]} 14.
Bd3 {[%clk 0:02:56.6]} 14... Bxd3 {[%clk 0:02:51.2]} 15. cxd3 {[%clk 0:02:55.6]}
15... g6 {[%clk 0:02:46.4]} 16. d4 {[%clk 0:02:54.2]} 16... O-O {[%clk
0:02:42.2]} 17. h4 {[%clk 0:02:38.3]} 17... Qc4 {[%clk 0:02:26.3]} 18. g4 {[%clk
0:02:20.4]} 18... Nf6 {[%clk 0:02:20.4]} 19. dxe5 {[%clk 0:02:08.5]} 19... dxe5
{[%clk 0:02:19.8]} 20. d6 {[%clk 0:01:35.4]} 20... Rfd8 {[%clk 0:01:55.5]} 21.
Bc5 {[%clk 0:00:23.5]} 21... b6 {[%clk 0:01:43.1]} 22. Ba3 {[%clk 0:00:16.8]}
22... Bf8 {[%clk 0:01:39.1]} 23. g5 {[%clk 0:00:10.1]} 23... Ne8 {[%clk
0:01:32.1]} 24. Rc1 {[%clk 0:00:08.4]} 24... Qe6 {[%clk 0:01:28.1]} 25. Rhd1
{[%clk 0:00:04.6]} 25... Bxd6 {[%clk 0:01:06.1]} 26. Rc6 {[%clk 0:00:03.5]}
26... Qf5+ {[%clk 0:01:04.9]} 27. Ka1 {[%clk 0:00:03.3]} 27... Be7 {[%clk
0:00:54.5]} 28. Qc1 {[%clk 0:00:01.7]} 28... Qxf3 {[%clk 0:00:49.3]} 29. Re1
{[%clk 0:00:01.2]} 29... Bxa3 {[%clk 0:00:42.3]} 30. bxa3 {[%clk 0:00:01.3]}
30... Ng7 {[%clk 0:00:35.3]} 0-1

[Event "Late-Titled-Tuesday-Blitz-October-03-2023"]
[Site "Chess.com"]
[Date "2023.10.03"]
[Round "6"]
[White "chessmoo"]
[Black "filipluczak05"]
[Result "0-1"]
[WhiteElo "2463"]
[BlackElo "2608"]
[TimeControl "180+1"]
[EndTime "15:03:29 PDT"]
[Termination "filipluczak05 won by checkmate"]

1. c4 {[%clk 0:02:53.7]} 1... g6 {[%clk 0:03:00.9]} 2. g3 {[%clk 0:02:52.8]}
2... Bg7 {[%clk 0:03:01]} 3. Bg2 {[%clk 0:02:53.1]} 3... Nf6 {[%clk 0:02:52.1]}
4. Nc3 {[%clk 0:02:51.4]} 4... O-O {[%clk 0:02:38.4]} 5. d4 {[%clk 0:02:50.9]}
5... d6 {[%clk 0:02:33.6]} 6. h3 {[%clk 0:02:50.7]} 6... e5 {[%clk 0:02:32.2]}
7. Nf3 {[%clk 0:02:50.2]} 7... Nc6 {[%clk 0:02:31.8]} 8. Be3 {[%clk 0:02:49.8]}
8... Re8 {[%clk 0:02:28.5]} 9. dxe5 {[%clk 0:02:38.6]} 9... Nxe5 {[%clk
0:02:25.9]} 10. Nxe5 {[%clk 0:02:38.5]} 10... Rxe5 {[%clk 0:02:26.8]} 11. Bd4
{[%clk 0:02:36]} 11... Re8 {[%clk 0:02:25.8]} 12. O-O {[%clk 0:02:34.3]} 12...
c5 {[%clk 0:02:15.4]} 13. Bxf6 {[%clk 0:02:24.7]} 13... Bxf6 {[%clk 0:02:09.2]}
14. Rc1 {[%clk 0:02:23.6]} 14... Be6 {[%clk 0:02:05.2]} 15. b3 {[%clk
0:02:22.8]} 15... Qd7 {[%clk 0:02:02]} 16. Kh2 {[%clk 0:02:21.4]} 16... Rad8
{[%clk 0:01:56]} 17. Qd2 {[%clk 0:02:15.3]} 17... h5 {[%clk 0:01:46.2]} 18. h4
{[%clk 0:02:08.6]} 18... Qe7 {[%clk 0:01:43.4]} 19. Rfd1 {[%clk 0:01:51.7]}
19... a6 {[%clk 0:01:42.5]} 20. Kg1 {[%clk 0:01:34.9]} 20... g5 {[%clk
0:01:30.7]} 21. hxg5 {[%clk 0:01:10.8]} 21... Bxg5 {[%clk 0:01:28.4]} 22. f4
{[%clk 0:01:07.4]} 22... Bf6 {[%clk 0:01:24.8]} 23. Ne4 {[%clk 0:01:05.7]} 23...
Bg7 {[%clk 0:01:17.8]} 24. Ng5 {[%clk 0:01:00.2]} 24... Bg4 {[%clk 0:01:13.2]}
25. Re1 {[%clk 0:00:42.3]} 25... Bd4+ {[%clk 0:01:11.1]} 26. Kh2 {[%clk
0:00:36]} 26... Be3 {[%clk 0:01:07.3]} 27. Qd3 {[%clk 0:00:34.4]} 27... f5
{[%clk 0:00:46.7]} 28. Bd5+ {[%clk 0:00:34]} 28... Kh8 {[%clk 0:00:37.9]} 29.
Nf7+ {[%clk 0:00:29.3]} 29... Kg7 {[%clk 0:00:37.8]} 30. Rcd1 {[%clk 0:00:25.2]}
30... h4 {[%clk 0:00:31.5]} 31. Qc3+ {[%clk 0:00:25.4]} 31... Kg6 {[%clk
0:00:27.2]} 32. Nxd8 {[%clk 0:00:18.5]} 32... hxg3+ {[%clk 0:00:24.4]} 33. Kxg3
{[%clk 0:00:18.8]} 33... Qh4+ {[%clk 0:00:21]} 34. Kxh4 {[%clk 0:00:17]} 34...
Bf2+ {[%clk 0:00:20.3]} 35. Qg3 {[%clk 0:00:15]} 35... Rh8# {[%clk 0:00:20.8]}
0-1

[Event "Late-Titled-Tuesday-Blitz-October-03-2023"]
[Site "Chess.com"]
[Date "2023.10.03"]
[Round "6"]
[White "Russian_berezka"]
[Black "KaydenTroffChess"]
[Result "0-1"]
[WhiteElo "2640"]
[BlackElo "2758"]
[TimeControl "180+1"]
[EndTime "15:03:30 PDT"]
[Termination "KaydenTroffChess won by resignation"]

1. d4 {[%clk 0:03:00.9]} 1... Nf6 {[%clk 0:02:58.8]} 2. Nc3 {[%clk 0:03:01.1]}
2... d5 {[%clk 0:02:58]} 3. Bf4 {[%clk 0:03:01.5]} 3... g6 {[%clk 0:02:53.9]} 4.
Qd2 {[%clk 0:03:01]} 4... h6 {[%clk 0:02:53.7]} 5. O-O-O {[%clk 0:03:00.3]} 5...
Bg7 {[%clk 0:02:53.7]} 6. f3 {[%clk 0:03:00.4]} 6... Nh5 {[%clk 0:02:42.7]} 7.
Be3 {[%clk 0:02:50.2]} 7... c6 {[%clk 0:02:36.7]} 8. g4 {[%clk 0:02:49.9]} 8...
Nf6 {[%clk 0:02:36.2]} 9. h4 {[%clk 0:02:47.7]} 9... Qa5 {[%clk 0:02:33.5]} 10.
Kb1 {[%clk 0:02:44.1]} 10... Nbd7 {[%clk 0:02:32.8]} 11. Bf4 {[%clk 0:02:38]}
11... Nb6 {[%clk 0:02:17.9]} 12. e4 {[%clk 0:02:35.2]} 12... dxe4 {[%clk
0:02:16.7]} 13. Nxe4 {[%clk 0:02:35.5]} 13... Qxd2 {[%clk 0:02:11.7]} 14. Nxf6+
{[%clk 0:02:35.8]} 14... Bxf6 {[%clk 0:02:09.4]} 15. Rxd2 {[%clk 0:02:36.7]}
15... Be6 {[%clk 0:02:08.1]} 16. c3 {[%clk 0:02:28.2]} 16... O-O-O {[%clk
0:02:06.7]} 17. Nh3 {[%clk 0:02:26.5]} 17... Bxh4 {[%clk 0:01:58.3]} 18. Bd3
{[%clk 0:02:21.8]} 18... h5 {[%clk 0:01:45.1]} 19. g5 {[%clk 0:02:08]} 19... Nd5
{[%clk 0:01:43.3]} 20. Be5 {[%clk 0:02:08.4]} 20... Rhg8 {[%clk 0:01:39.1]} 21.
Rg2 {[%clk 0:01:58.6]} 21... f6 {[%clk 0:01:31.6]} 22. gxf6 {[%clk 0:01:58.4]}
22... exf6 {[%clk 0:01:31.9]} 23. Bg3 {[%clk 0:01:49.5]} 23... Bxg3 {[%clk
0:01:31.4]} 24. Rxg3 {[%clk 0:01:50.4]} 24... Bxh3 {[%clk 0:01:31.8]} 25. Rhxh3
{[%clk 0:01:40.3]} 25... Nf4 {[%clk 0:01:31.8]} 26. Bc4 {[%clk 0:01:40.9]} 26...
Nxh3 {[%clk 0:01:22.6]} 27. Bxg8 {[%clk 0:01:40.5]} 27... Nf4 {[%clk 0:01:23.2]}
28. Bf7 {[%clk 0:01:36.7]} 28... h4 {[%clk 0:01:22.7]} 29. Rg1 {[%clk
0:01:32.1]} 29... g5 {[%clk 0:01:20]} 30. Kc2 {[%clk 0:01:31.1]} 30... Rd7
{[%clk 0:01:15.1]} 31. Bc4 {[%clk 0:01:22.1]} 31... Re7 {[%clk 0:01:10.6]} 32.
Bd3 {[%clk 0:01:21.1]} 32... Re3 {[%clk 0:01:08]} 33. Be4 {[%clk 0:01:16.7]}
33... Re2+ {[%clk 0:01:05.6]} 34. Kb3 {[%clk 0:01:13]} 34... h3 {[%clk
0:00:58.9]} 35. a4 {[%clk 0:00:41.3]} 35... h2 {[%clk 0:00:57.1]} 36. Rh1 {[%clk
0:00:41.9]} 36... Nh5 {[%clk 0:00:56.1]} 37. Bd3 {[%clk 0:00:33.8]} 37... Rf2
{[%clk 0:00:51.8]} 38. Re1 {[%clk 0:00:17]} 38... Ng3 {[%clk 0:00:49.7]} 39. Re7
{[%clk 0:00:17.2]} 39... h1=Q {[%clk 0:00:44.4]} 40. Re8+ {[%clk 0:00:16.9]}
40... Kd7 {[%clk 0:00:43.9]} 41. Rb8 {[%clk 0:00:16.9]} 41... Kc7 {[%clk
0:00:42.8]} 42. Re8 {[%clk 0:00:16.6]} 42... Qd1+ {[%clk 0:00:42.7]} 43. Kc4
{[%clk 0:00:16]} 43... Qxa4+ {[%clk 0:00:42.5]} 44. b4 {[%clk 0:00:15.9]} 44...
Qa2+ {[%clk 0:00:42.6]} 0-1

[Event "Late-Titled-Tuesday-Blitz-October-03-2023"]
[Site "Chess.com"]
[Date "2023.10.03"]
[Round "6"]
[White "tantaan"]
[Black "SanchezKelvin"]
[Result "0-1"]
[WhiteElo "2407"]
[BlackElo "2576"]
[TimeControl "180+1"]
[EndTime "15:03:30 PDT"]
[Termination "SanchezKelvin won on time"]

1. d4 {[%clk 0:03:00.9]} 1... Nf6 {[%clk 0:02:59.4]} 2. c4 {[%clk 0:03:01.3]}
2... e6 {[%clk 0:02:57.9]} 3. Nc3 {[%clk 0:03:01.7]} 3... Bb4 {[%clk 0:02:55.8]}
4. f3 {[%clk 0:03:02]} 4... c5 {[%clk 0:02:54.9]} 5. d5 {[%clk 0:03:01.9]} 5...
b5 {[%clk 0:02:55.1]} 6. e4 {[%clk 0:03:01.7]} 6... exd5 {[%clk 0:02:53.4]} 7.
cxd5 {[%clk 0:02:26.8]} 7... a6 {[%clk 0:02:47.5]} 8. a4 {[%clk 0:02:20.6]} 8...
Bb7 {[%clk 0:02:36.9]} 9. Nh3 {[%clk 0:02:02.5]} 9... Nxd5 {[%clk 0:02:24.8]}
10. exd5 {[%clk 0:01:59.4]} 10... O-O {[%clk 0:02:17.6]} 11. Be2 {[%clk
0:01:58.9]} 11... Qh4+ {[%clk 0:02:16.4]} 12. Nf2 {[%clk 0:01:57]} 12... c4
{[%clk 0:02:11.9]} 13. O-O {[%clk 0:01:54.2]} 13... Bd6 {[%clk 0:02:11.6]} 14.
Nh3 {[%clk 0:01:46.9]} 14... Re8 {[%clk 0:02:05.1]} 15. axb5 {[%clk 0:01:32.9]}
15... h6 {[%clk 0:01:27.4]} 16. Ne4 {[%clk 0:01:07.8]} 16... Be5 {[%clk
0:01:16.4]} 17. f4 {[%clk 0:00:39.5]} 17... Bc7 {[%clk 0:01:05.2]} 18. Nc5
{[%clk 0:00:36.9]} 18... Bb6 {[%clk 0:01:03.4]} 19. Kh1 {[%clk 0:00:19.9]} 19...
Bxc5 {[%clk 0:01:01.4]} 20. Bxc4 {[%clk 0:00:20.3]} 20... d6 {[%clk 0:00:52.5]}
21. bxa6 {[%clk 0:00:18.5]} 21... Nxa6 {[%clk 0:00:50.9]} 22. Bd2 {[%clk
0:00:15.1]} 22... Nc7 {[%clk 0:00:47.5]} 23. Rxa8 {[%clk 0:00:14.1]} 23... Bxa8
{[%clk 0:00:46.6]} 24. Be1 {[%clk 0:00:14.3]} 24... Qe7 {[%clk 0:00:42.8]} 25.
Bc3 {[%clk 0:00:13.5]} 25... Qd7 {[%clk 0:00:41.8]} 26. f5 {[%clk 0:00:13.7]}
26... Nb5 {[%clk 0:00:41.7]} 27. Bxb5 {[%clk 0:00:09.6]} 27... Qxb5 {[%clk
0:00:41.2]} 28. Rf3 {[%clk 0:00:05.8]} 28... Re4 {[%clk 0:00:36.5]} 29. Rg3
{[%clk 0:00:04.1]} 29... f6 {[%clk 0:00:33.5]} 30. Bxf6 {[%clk 0:00:03.1]} 30...
g5 {[%clk 0:00:33.5]} 0-1

[Event "Late-Titled-Tuesday-Blitz-October-03-2023"]
[Site "Chess.com"]
[Date "2023.10.03"]
[Round "6"]
[White "chesskov1982"]
[Black "mishanick"]
[Result "1-0"]
[WhiteElo "2847"]
[BlackElo "3004"]
[TimeControl "180+1"]
[EndTime "15:03:33 PDT"]
[Termination "chesskov1982 won by resignation"]

1. d4 {[%clk 0:02:55.4]} 1... Nf6 {[%clk 0:02:58.7]} 2. c4 {[%clk 0:02:50.2]}
2... e6 {[%clk 0:02:58.9]} 3. Nf3 {[%clk 0:02:47.2]} 3... d5 {[%clk 0:02:57.9]}
4. Nc3 {[%clk 0:02:46.3]} 4... Nbd7 {[%clk 0:02:57]} 5. cxd5 {[%clk 0:02:46.2]}
5... exd5 {[%clk 0:02:57.9]} 6. Bg5 {[%clk 0:02:46.2]} 6... h6 {[%clk
0:02:57.6]} 7. Bh4 {[%clk 0:02:46.2]} 7... c6 {[%clk 0:02:58.1]} 8. e3 {[%clk
0:02:46.5]} 8... g5 {[%clk 0:02:58.7]} 9. Bg3 {[%clk 0:02:46.4]} 9... Nh5 {[%clk
0:02:59.5]} 10. Be5 {[%clk 0:02:45.4]} 10... Nxe5 {[%clk 0:02:59.3]} 11. Nxe5
{[%clk 0:02:44]} 11... Nf6 {[%clk 0:03:00]} 12. Bd3 {[%clk 0:02:41.4]} 12... Bd6
{[%clk 0:03:00.4]} 13. O-O {[%clk 0:02:39.1]} 13... Bxe5 {[%clk 0:02:59.4]} 14.
dxe5 {[%clk 0:02:40]} 14... Ng4 {[%clk 0:02:59.6]} 15. Be2 {[%clk 0:02:20.2]}
15... Nxe5 {[%clk 0:02:58.1]} 16. Qd4 {[%clk 0:02:17.8]} 16... Ng6 {[%clk
0:02:40.6]} 17. e4 {[%clk 0:02:14.4]} 17... dxe4 {[%clk 0:02:31]} 18. Qxd8+
{[%clk 0:02:07.5]} 18... Kxd8 {[%clk 0:02:30.9]} 19. Nxe4 {[%clk 0:02:07.6]}
19... Kc7 {[%clk 0:02:28.9]} 20. Bc4 {[%clk 0:02:04]} 20... Ne5 {[%clk
0:02:27.1]} 21. Bb3 {[%clk 0:02:04.3]} 21... Bf5 {[%clk 0:02:27.4]} 22. f4
{[%clk 0:02:01.6]} 22... gxf4 {[%clk 0:02:25]} 23. Rxf4 {[%clk 0:01:59.8]} 23...
Bg6 {[%clk 0:02:25.6]} 24. Nf6 {[%clk 0:01:57.5]} 24... Rad8 {[%clk 0:02:24.7]}
25. Rf2 {[%clk 0:01:53.6]} 25... Rd6 {[%clk 0:02:21.2]} 26. Raf1 {[%clk
0:01:49.9]} 26... Kb6 {[%clk 0:02:02.9]} 27. Re2 {[%clk 0:01:45.2]} 27... Bd3
{[%clk 0:01:44.8]} 28. Rxe5 {[%clk 0:01:38.8]} 28... Bxf1 {[%clk 0:01:45.2]} 29.
Ne4 {[%clk 0:01:25.8]} 29... Rdd8 {[%clk 0:01:44.2]} 30. Kxf1 {[%clk 0:01:25]}
30... Rhe8 {[%clk 0:01:44.9]} 31. Rxe8 {[%clk 0:01:23]} 31... Rxe8 {[%clk
0:01:45.8]} 32. Nd6 {[%clk 0:01:21.3]} 32... Rf8 {[%clk 0:01:36.3]} 33. Nxf7
{[%clk 0:01:19.4]} 33... a5 {[%clk 0:01:36.8]} 34. Kg1 {[%clk 0:01:04.2]} 34...
a4 {[%clk 0:01:33.8]} 35. Be6 {[%clk 0:01:04]} 35... Kc5 {[%clk 0:01:31.8]} 36.
g4 {[%clk 0:01:00.7]} 36... Re8 {[%clk 0:01:20.5]} 37. Bf5 {[%clk 0:00:57.6]}
37... Re2 {[%clk 0:01:20.9]} 38. Nxh6 {[%clk 0:00:54.6]} 38... Kd6 {[%clk
0:01:11.6]} 39. g5 {[%clk 0:00:51.5]} 39... Ke5 {[%clk 0:01:10.2]} 40. Bg4
{[%clk 0:00:40.9]} 40... Rxb2 {[%clk 0:01:05.9]} 41. Nf7+ {[%clk 0:00:38.4]}
41... Kf4 {[%clk 0:01:06.3]} 42. g6 {[%clk 0:00:36.8]} 42... Re2 {[%clk
0:00:19.9]} 43. Bxe2 {[%clk 0:00:32.8]} 1-0

[Event "Late-Titled-Tuesday-Blitz-October-03-2023"]
[Site "Chess.com"]
[Date "2023.10.03"]
[Round "6"]
[White "chosenpr"]
[Black "Deeper44"]
[Result "1-0"]
[WhiteElo "2252"]
[BlackElo "2536"]
[TimeControl "180+1"]
[EndTime "15:03:36 PDT"]
[Termination "chosenpr won by resignation"]

1. e4 {[%clk 0:02:55.2]} 1... e6 {[%clk 0:02:59.2]} 2. d4 {[%clk 0:02:54.8]}
2... d5 {[%clk 0:02:59.9]} 3. Nd2 {[%clk 0:02:55.3]} 3... Be7 {[%clk 0:02:58.4]}
4. Bd3 {[%clk 0:02:49.6]} 4... c5 {[%clk 0:02:57.4]} 5. dxc5 {[%clk 0:02:46.6]}
5... Nf6 {[%clk 0:02:57.5]} 6. exd5 {[%clk 0:02:44.2]} 6... exd5 {[%clk
0:02:57.1]} 7. Ngf3 {[%clk 0:02:44.3]} 7... O-O {[%clk 0:02:57.7]} 8. O-O {[%clk
0:02:44.9]} 8... Bxc5 {[%clk 0:02:56.9]} 9. Nb3 {[%clk 0:02:45.5]} 9... Bb6
{[%clk 0:02:55]} 10. h3 {[%clk 0:02:45.8]} 10... Ne4 {[%clk 0:02:53.8]} 11. c3
{[%clk 0:02:42.2]} 11... Re8 {[%clk 0:02:51.4]} 12. Nfd4 {[%clk 0:02:37.6]}
12... Nc6 {[%clk 0:02:51.4]} 13. Be3 {[%clk 0:02:37.3]} 13... Qh4 {[%clk
0:02:40.3]} 14. Qf3 {[%clk 0:02:33.6]} 14... Bd7 {[%clk 0:02:25.6]} 15. Rfe1
{[%clk 0:02:32.1]} 15... Ne5 {[%clk 0:02:21]} 16. Qe2 {[%clk 0:02:24.6]} 16...
Nxd3 {[%clk 0:02:20.8]} 17. Qxd3 {[%clk 0:02:25.5]} 17... a5 {[%clk 0:02:10.6]}
18. Nf3 {[%clk 0:02:20.3]} 18... Qf6 {[%clk 0:02:02.4]} 19. Bxb6 {[%clk
0:02:10.7]} 19... Qxb6 {[%clk 0:02:03.3]} 20. Qd4 {[%clk 0:02:03.9]} 20... Qxd4
{[%clk 0:01:29.2]} 21. Nbxd4 {[%clk 0:02:02.4]} 21... a4 {[%clk 0:01:28.6]} 22.
a3 {[%clk 0:02:02.2]} 22... g5 {[%clk 0:01:23.2]} 23. Rad1 {[%clk 0:01:58.3]}
23... g4 {[%clk 0:01:20.8]} 24. hxg4 {[%clk 0:01:57.2]} 24... Bxg4 {[%clk
0:01:21.1]} 25. Re3 {[%clk 0:01:54.3]} 25... f5 {[%clk 0:01:10.8]} 26. g3 {[%clk
0:01:46.7]} 26... Ng5 {[%clk 0:01:06.4]} 27. Rde1 {[%clk 0:01:42.5]} 27... Rxe3
{[%clk 0:01:00.8]} 28. Rxe3 {[%clk 0:01:41.2]} 28... Ne4 {[%clk 0:00:58.5]} 29.
Ne5 {[%clk 0:01:39]} 29... Ng5 {[%clk 0:00:32.9]} 30. f3 {[%clk 0:01:32.3]}
30... Bh5 {[%clk 0:00:16.5]} 31. Nxf5 {[%clk 0:01:30.7]} 31... Re8 {[%clk
0:00:12.5]} 32. Kf2 {[%clk 0:01:13.4]} 32... Re6 {[%clk 0:00:08.4]} 33. g4
{[%clk 0:01:09.8]} 33... Bg6 {[%clk 0:00:08.3]} 34. Nxg6 {[%clk 0:01:09.5]}
34... Rxg6 {[%clk 0:00:09.1]} 35. Ne7+ {[%clk 0:01:09.3]} 35... Kf7 {[%clk
0:00:09.7]} 36. Nxg6 {[%clk 0:01:10.2]} 36... hxg6 {[%clk 0:00:10.6]} 37. Re5
{[%clk 0:01:10.2]} 37... Ne6 {[%clk 0:00:10]} 38. Rxd5 {[%clk 0:01:10.2]} 38...
Nf4 {[%clk 0:00:10.9]} 39. Rd7+ {[%clk 0:01:10.4]} 39... Ke6 {[%clk 0:00:11.8]}
40. Rxb7 {[%clk 0:01:11.3]} 40... Kd6 {[%clk 0:00:12.3]} 41. Rb6+ {[%clk
0:01:11.3]} 41... Kc5 {[%clk 0:00:12.6]} 42. Rb4 {[%clk 0:01:08.4]} 42... Nd3+
{[%clk 0:00:13]} 43. Ke3 {[%clk 0:01:08.9]} 43... Nxb4 {[%clk 0:00:13.9]} 44.
cxb4+ {[%clk 0:01:08.2]} 44... Kc4 {[%clk 0:00:14.8]} 45. Kf4 {[%clk 0:01:07.3]}
45... Kb3 {[%clk 0:00:15.7]} 46. b5 {[%clk 0:01:07.6]} 46... Kxb2 {[%clk
0:00:16.6]} 47. b6 {[%clk 0:01:08.4]} 47... Ka2 {[%clk 0:00:17.5]} 48. b7 {[%clk
0:01:09.3]} 48... Kxa3 {[%clk 0:00:18.4]} 49. b8=Q {[%clk 0:01:09.9]} 49... Ka2
{[%clk 0:00:19.3]} 50. Qa7 {[%clk 0:01:10.3]} 50... a3 {[%clk 0:00:20.2]} 51.
Kg5 {[%clk 0:01:10.5]} 51... Kb2 {[%clk 0:00:21.1]} 52. Kxg6 {[%clk 0:01:10.9]}
52... a2 {[%clk 0:00:22]} 53. Qxa2+ {[%clk 0:01:09.6]} 53... Kxa2 {[%clk
0:00:22.8]} 54. f4 {[%clk 0:01:10.5]} 54... Kb3 {[%clk 0:00:23.7]} 55. f5 {[%clk
0:01:11.4]} 1-0

[Event "Late-Titled-Tuesday-Blitz-October-03-2023"]
[Site "Chess.com"]
[Date "2023.10.03"]
[Round "6"]
[White "familijatop71"]
[Black "rikchessmx"]
[Result "0-1"]
[WhiteElo "2166"]
[BlackElo "2336"]
[TimeControl "180+1"]
[EndTime "15:03:36 PDT"]
[Termination "rikchessmx won on time"]

1. e4 {[%clk 0:03:00.9]} 1... c5 {[%clk 0:02:56.3]} 2. Nf3 {[%clk 0:02:59.5]}
2... e6 {[%clk 0:02:56.5]} 3. d4 {[%clk 0:02:57.4]} 3... c4 {[%clk 0:02:57.4]}
4. Bxc4 {[%clk 0:02:52.7]} 4... a6 {[%clk 0:02:52]} 5. a4 {[%clk 0:02:50.7]}
5... b6 {[%clk 0:02:51.4]} 6. c3 {[%clk 0:02:47.4]} 6... Bb7 {[%clk 0:02:51.9]}
7. Bd3 {[%clk 0:02:47.2]} 7... d6 {[%clk 0:02:51.5]} 8. O-O {[%clk 0:02:46.5]}
8... Be7 {[%clk 0:02:50.9]} 9. Re1 {[%clk 0:02:40.4]} 9... Qc7 {[%clk
0:02:50.2]} 10. Nbd2 {[%clk 0:02:38]} 10... Nd7 {[%clk 0:02:49.7]} 11. Nf1
{[%clk 0:02:34.4]} 11... e5 {[%clk 0:02:49.2]} 12. Ng3 {[%clk 0:02:27.1]} 12...
Ngf6 {[%clk 0:02:46.7]} 13. Nf5 {[%clk 0:02:24.9]} 13... Bf8 {[%clk 0:02:46.2]}
14. Bg5 {[%clk 0:02:18.9]} 14... h6 {[%clk 0:02:46.1]} 15. Bh4 {[%clk
0:02:16.1]} 15... g6 {[%clk 0:02:45.4]} 16. Bxf6 {[%clk 0:01:58.1]} 16... Nxf6
{[%clk 0:02:44.8]} 17. dxe5 {[%clk 0:01:57]} 17... dxe5 {[%clk 0:02:42.6]} 18.
Ne3 {[%clk 0:01:44.6]} 18... Bg7 {[%clk 0:02:37.5]} 19. Nc4 {[%clk 0:01:39.4]}
19... Nd7 {[%clk 0:02:34.5]} 20. h3 {[%clk 0:01:23.2]} 20... O-O {[%clk
0:02:33.7]} 21. Qe2 {[%clk 0:01:16.2]} 21... Rfd8 {[%clk 0:02:32.9]} 22. Rad1
{[%clk 0:01:14.6]} 22... Nf8 {[%clk 0:02:23.7]} 23. Bb1 {[%clk 0:01:12.5]} 23...
Ne6 {[%clk 0:02:22.7]} 24. Ba2 {[%clk 0:01:02.8]} 24... Nf4 {[%clk 0:02:21.9]}
25. Qf1 {[%clk 0:00:59.2]} 25... b5 {[%clk 0:02:21.8]} 26. Ne3 {[%clk
0:00:46.6]} 26... Bxe4 {[%clk 0:02:15.5]} 27. Nh2 {[%clk 0:00:34.1]} 27... Bd3
{[%clk 0:02:07.3]} 28. Rxd3 {[%clk 0:00:31.3]} 28... Nxd3 {[%clk 0:02:07.3]} 29.
Re2 {[%clk 0:00:27.8]} 29... bxa4 {[%clk 0:02:01.2]} 30. Nf3 {[%clk 0:00:27.6]}
30... Rab8 {[%clk 0:01:58.2]} 31. g3 {[%clk 0:00:26.5]} 31... Rxb2 {[%clk
0:01:55.6]} 32. Rxb2 {[%clk 0:00:26.6]} 32... Nxb2 {[%clk 0:01:56.5]} 33. Qb1
{[%clk 0:00:24.6]} 33... a3 {[%clk 0:01:56]} 34. h4 {[%clk 0:00:22.3]} 34... Kf8
{[%clk 0:01:47.2]} 35. h5 {[%clk 0:00:22.1]} 35... Nd3 {[%clk 0:01:34.8]} 36.
hxg6 {[%clk 0:00:21]} 36... fxg6 {[%clk 0:01:35.2]} 37. Qb3 {[%clk 0:00:19.6]}
37... Ke7 {[%clk 0:01:26.6]} 38. Qe6+ {[%clk 0:00:16.1]} 38... Kf8 {[%clk
0:01:25.2]} 39. Qg8+ {[%clk 0:00:16.1]} 39... Ke7 {[%clk 0:01:25.4]} 40. Qxg7+
{[%clk 0:00:15.3]} 40... Kd6 {[%clk 0:01:25.8]} 41. Qxg6+ {[%clk 0:00:13.4]}
41... Kc5 {[%clk 0:01:25.8]} 42. Qe4 {[%clk 0:00:08.5]} 42... Kb6 {[%clk
0:01:20.3]} 43. Nc4+ {[%clk 0:00:05.8]} 43... Ka7 {[%clk 0:01:17.6]} 44. Nfxe5
{[%clk 0:00:06.3]} 44... Nxe5 {[%clk 0:01:16.5]} 45. Nxe5 {[%clk 0:00:07]} 45...
Rc8 {[%clk 0:01:16]} 46. Bd5 {[%clk 0:00:04.7]} 46... Qxc3 {[%clk 0:01:15]} 47.
Nc6+ {[%clk 0:00:03.8]} 47... Kb6 {[%clk 0:01:15.3]} 48. Qe3+ {[%clk 0:00:02.8]}
48... Qc5 {[%clk 0:01:14.8]} 49. Qxc5+ {[%clk 0:00:01.3]} 49... Kxc5 {[%clk
0:01:14.8]} 50. Bg2 {[%clk 0:00:01.4]} 50... Rxc6 {[%clk 0:01:14.5]} 51. f4
{[%clk 0:00:02.3]} 51... a2 {[%clk 0:01:14]} 52. Kh2 {[%clk 0:00:02.4]} 52...
a1=Q {[%clk 0:01:14.2]} 0-1